fUST/lending_fUST_20260410
["ID","MTS","AMOUNT","RATE_DAILY","PERIOD"]
[420207103,1775778639613,-199.94311783,0.00018207,2]
[420207104,1775778639626,-562.0,0.0001831,2]
[420207105,1775778639652,-802.0,0.00018356,2]
[420207106,1775778639679,-168.0,0.00018408,2]
[420207107,1775778639689,-562.0,0.00018414,2]
[420207108,1775778639707,-562.0,0.00018726,2]
[420207109,1775778639718,-562.0,0.00018887,2]
[420207110,1775778639729,-420.0,0.00018896,2]
[420207111,1775778639739,-500.0,0.00019,2]
[420207112,1775778639749,-366.88,0.00019,2]
[420207113,1775778639760,-325.0882203,0.00019052,2]
[420207114,1775778639772,-2377.91514388,0.00019054,2]
[420207115,1775778639802,-1616.53088722,0.00019057,2]
[420207116,1775778639811,-151.268153,0.00019156,2]
[420207117,1775778639825,-151.0,0.00019157,2]
[420207118,1775778639853,-151.0,0.00019157,2]
[420207119,1775778639875,-151.0,0.00019157,2]
[420207120,1775778639899,-151.0,0.00019157,2]
[420207121,1775778639909,-500.0,0.00019157,2]
[420207122,1775778639918,-500.0,0.00019157,2]
[420207123,1775778639944,-500.0,0.00019157,2]
[420207124,1775778639956,-3056.6239497,0.00019158,2]
[420207125,1775778639965,-3065.2630764,0.00019158,2]
[420207126,1775778639981,-39944.020429,0.00019158,2]
[420207127,1775778640000,-151.0,0.00019158,2]
[420207128,1775778640010,-151.0,0.00019158,2]
[420207129,1775778640021,-215.996164,0.00019158,2]
[420207130,1775778640043,-248.9853146,0.00019158,2]
[420207131,1775778640053,-403.59,0.00019167,3]
[420207132,1775778640064,-1082.66,0.00019168,3]
[420207133,1775778640106,-1614.36,0.00019168,3]
[420207134,1775778640123,-807.18,0.00019168,3]
[420207135,1775778640154,-201.79,0.00019168,3]
[420207136,1775778640164,-605.41,0.00019168,3]
[420207137,1775778640174,-500.0,0.00019175,2]
[420207138,1775778640196,-500.0,0.00019175,2]
[420207139,1775778640205,-500.0,0.00019176,2]
[420207140,1775778640225,-500.0,0.00019176,2]
[420207141,1775778640234,-500.0,0.00019176,2]
[420207142,1775778640245,-540.17238636,0.00019176,2]
[420207143,1775778640262,-500.0,0.00019176,2]
[420207144,1775778640283,-500.0,0.00019176,2]
[420207145,1775778640293,-578.92831116,0.00019176,2]
[420207146,1775778640303,-517.92006273,0.00019176,2]
[420207147,1775778640326,-500.0,0.00019176,2]
[420207148,1775778640347,-500.0,0.00019176,2]
[420207149,1775778640378,-500.0,0.00019176,2]
[420207150,1775778640389,-718.73569867,0.00019176,2]
[420207151,1775778640412,-718.73569867,0.00019176,2]
[420207152,1775778640422,-718.73569867,0.00019176,2]
[420207153,1775778640432,-718.73569867,0.00019176,2]
[420207154,1775778640453,-718.73569867,0.00019176,2]
[420207155,1775778640466,-718.73569867,0.00019176,2]
[420207156,1775778640475,-718.73569867,0.00019176,2]
[420207157,1775778640485,-500.0,0.00019176,2]
[420207158,1775778640496,-500.0,0.00019176,2]
[420207160,1775778640511,-312.54404392,0.00019176,2]
[420207162,1775778640521,-500.0,0.00019176,2]
[420207163,1775778640533,-742.69355529,0.00019176,2]
[420207165,1775778640542,-742.69355529,0.00019176,2]
[420207166,1775778640574,-742.69355529,0.00019176,2]
[420207167,1775778640593,-742.69355529,0.00019176,2]
[420207169,1775778640608,-742.69355529,0.00019176,2]
[420207171,1775778640631,-742.69355529,0.00019176,2]
[420207173,1775778640640,-742.69355529,0.00019176,2]
[420207175,1775778640661,-798.39557194,0.00019176,2]
[420207178,1775778640670,-798.39557194,0.00019176,2]
[420207180,1775778640680,-798.39557194,0.00019176,2]
[420207182,1775778640696,-798.39557194,0.00019176,2]
[420207184,1775778640707,-3517.0,0.00019177,5]
[420207186,1775778640716,-8621.4626206,0.00019177,2]
[420207188,1775778640725,-438.74396691,0.00019177,2]
[420207190,1775778640734,-835.41587647,0.00019177,2]
[420207192,1775778640745,-500.0,0.00019177,2]
[420207193,1775778640754,-500.0,0.00019177,2]
[420207194,1775778640767,-500.0,0.00019177,2]
[420207195,1775778640776,-500.0,0.00019177,2]
[420207196,1775778640785,-500.0,0.00019177,2]
[420207197,1775778640795,-214.13241105,0.00019177,2]
[420207198,1775778640807,-1380.0135,0.00019178,18]
[420207199,1775778640816,-1380.0135,0.00019178,18]
[420207200,1775778640826,-1380.0135,0.00019178,18]
[420207201,1775778640835,-1380.0135,0.00019178,18]
[420207202,1775778640850,-919.61,0.00019178,18]
[420207203,1775778640860,-500.0,0.00019178,18]
[420207204,1775778640870,-500.0,0.00019178,18]
[420207205,1775778640879,-500.0,0.00019178,18]
[420207206,1775778640892,-1017.65,0.00019178,18]
[420207207,1775778640903,-500.0,0.00019178,18]
[420207208,1775778640917,-500.0,0.00019178,18]
[420207209,1775778640928,-630.17,0.00019178,18]
[420207210,1775778640947,-500.0,0.00019178,18]
[420207211,1775778640957,-500.0,0.00019178,18]
[420207212,1775778640970,-500.0,0.00019178,18]
[420207213,1775778640983,-500.0,0.00019178,18]
[420207214,1775778640992,-500.0,0.00019178,18]
[420207215,1775778641011,-517.42034067,0.00019178,18]
[420207217,1775778641021,-563.46,0.00019178,18]
[420207219,1775778641043,-500.0,0.00019178,18]
[420207221,1775778641052,-1197.49,0.00019178,18]
[420207222,1775778641079,-500.0,0.00019178,18]
[420207223,1775778641108,-500.0,0.00019178,18]
[420207224,1775778641123,-500.0,0.00019178,18]
[420207225,1775778641132,-500.0,0.00019178,18]
[420207226,1775778641151,-500.0,0.00019178,18]
[420207227,1775778641161,-500.0,0.00019178,18]
[420207228,1775778641171,-500.0,0.00019178,18]
[420207229,1775778641180,-500.0,0.00019178,18]
[420207230,1775778641199,-500.0,0.00019178,18]
[420207231,1775778641209,-546.21,0.00019178,18]
[420207232,1775778641218,-500.0,0.00019178,18]
[420207233,1775778641227,-500.0,0.00019178,18]
[420207234,1775778641237,-500.0,0.00019178,18]
[420207235,1775778641248,-500.0,0.00019178,18]
[420207236,1775778641258,-500.0,0.00019178,18]
[420207237,1775778641275,-552.72,0.00019178,18]
[420207238,1775778641284,-500.0,0.00019178,18]
[420207239,1775778641306,-313.19019079,0.00019178,18]
[420207240,1775778641315,-500.0,0.00019178,18]
[420207242,1775778641325,-500.0,0.00019178,18]
[420207244,1775778641351,-500.0,0.00019178,18]
[420207246,1775778641384,-500.0,0.00019178,18]
[420207248,1775778641395,-500.0,0.00019178,18]
[420207250,1775778641427,-500.0,0.00019178,18]
[420207252,1775778641437,-500.0,0.00019178,18]
[420207254,1775778641446,-500.0,0.00019178,18]
[420207256,1775778641461,-500.0,0.00019178,18]
[420207257,1775778641472,-500.0,0.00019178,18]
[420207258,1775778641490,-500.0,0.00019178,18]
[420207259,1775778641499,-500.0,0.00019178,18]
[420207260,1775778641509,-1679.61,0.00019178,18]
[420207261,1775778641518,-500.0,0.00019178,18]
[420207262,1775778641539,-500.0,0.00019178,18]
[420207263,1775778641560,-500.0,0.00019178,18]
[420207264,1775778641572,-524.1,0.00019178,18]
[420207265,1775778641597,-500.0,0.00019178,18]
[420207266,1775778641624,-500.0,0.00019178,18]
[420207267,1775778641633,-500.0,0.00019178,18]
[420207268,1775778641646,-500.0,0.00019178,18]
[420207269,1775778641670,-500.0,0.00019178,18]
[420207270,1775778641683,-500.99,0.00019178,18]
[420207271,1775778641693,-500.0,0.00019178,18]
[420207272,1775778641711,-500.0,0.00019178,18]
[420207273,1775778641720,-500.0,0.00019178,18]
[420207274,1775778641731,-167.677,0.00019178,2]
[420207275,1775778641744,-565.22,0.00019178,18]
[420207276,1775778641754,-1241.91,0.00019178,18]
[420207277,1775778641777,-1168.6,0.00019178,18]
[420207278,1775778641787,-2662.65,0.00019178,18]
[420207279,1775778641807,-500.0,0.00019178,18]
[420207280,1775778641816,-566.51,0.00019178,18]
[420207281,1775778641842,-1012.1,0.00019178,18]
[420207282,1775778641868,-600.87,0.00019178,18]
[420207283,1775778641878,-2278.12,0.00019178,18]
[420207284,1775778641892,-714.99,0.00019178,18]
[420207285,1775778641910,-377.28870676,0.00019178,18]
[420207286,1775778641920,-500.0,0.00019178,18]
[420207287,1775778641930,-500.0,0.00019178,18]
[420207288,1775778641961,-544.34,0.00019178,18]
[420207289,1775778641970,-500.0,0.00019178,18]
[420207290,1775778641983,-500.0,0.00019178,18]
[420207291,1775778642003,-1071.76,0.00019178,18]
[420207292,1775778642012,-500.0,0.00019178,18]
[420207293,1775778642030,-519.97,0.00019178,18]
[420207294,1775778642065,-500.0,0.00019178,18]
[420207295,1775778642084,-500.0,0.00019178,18]
[420207296,1775778642094,-500.0,0.00019178,18]
[420207297,1775778642104,-500.0,0.00019178,18]
[420207298,1775778642117,-500.0,0.00019178,18]
[420207299,1775778642137,-500.0,0.00019178,18]
[420207300,1775778642146,-647.93,0.00019178,18]
[420207301,1775778642156,-500.0,0.00019178,18]
[420207302,1775778642166,-500.0,0.00019178,18]
[420207303,1775778642180,-618.71,0.00019178,18]
[420207304,1775778642189,-500.0,0.00019178,18]
[420207305,1775778642210,-200.0,0.00019178,2]
[420207306,1775778642219,-500.0,0.00019178,18]
[420207307,1775778642236,-500.0,0.00019178,18]
[420207308,1775778642246,-500.0,0.00019178,18]
[420207309,1775778642260,-500.0,0.00019178,18]
[420207310,1775778642272,-638.62,0.00019178,18]
[420207311,1775778642282,-500.0,0.00019178,18]
[420207312,1775778642295,-500.0,0.00019178,18]
[420207313,1775778642311,-607.90024182,0.00019178,18]
[420207314,1775778642337,-657.79,0.00019178,18]
[420207315,1775778642347,-511.23,0.00019178,18]
[420207316,1775778642374,-226.01719033,0.00019178,18]
[420207317,1775778642409,-343.85879971,0.00019178,18]
[420207318,1775778642435,-500.0,0.00019178,18]
[420207319,1775778642445,-500.0,0.00019178,18]
[420207320,1775778642470,-500.0,0.00019178,18]
[420207321,1775778642480,-1675.59,0.00019178,18]
[420207322,1775778642507,-1251.81,0.00019178,18]
[420207323,1775778642521,-500.0,0.00019178,18]
[420207324,1775778642532,-500.0,0.00019178,18]
[420207325,1775778642542,-500.0,0.00019178,18]
[420207326,1775778642565,-159.01200148,0.00019178,18]
[420207327,1775778642576,-500.0,0.00019178,18]
[420207328,1775778642588,-451.13871507,0.00019178,18]
[420207329,1775778642619,-500.0,0.00019178,18]
[420207330,1775778642634,-2119.86,0.00019178,18]
[420207331,1775778642663,-1207.58,0.00019178,18]
[420207332,1775778642690,-500.0,0.00019178,18]
[420207333,1775778642710,-500.0,0.00019178,18]
[420207334,1775778642719,-500.0,0.00019178,18]
[420207335,1775778642728,-590.59,0.00019178,18]
[420207336,1775778642749,-500.0,0.00019178,18]
[420207337,1775778642758,-2058.36,0.00019178,18]
[420207338,1775778642773,-2073.23,0.00019178,18]
[420207339,1775778642784,-500.0,0.00019178,18]
[420207340,1775778642794,-500.0,0.00019178,18]
[420207341,1775778642812,-1899.17,0.00019178,18]
[420207342,1775778642821,-500.0,0.00019178,18]
[420207343,1775778642842,-500.0,0.00019178,18]
[420207344,1775778642851,-500.0,0.00019178,18]
[420207345,1775778642873,-500.0,0.00019178,18]
[420207346,1775778642883,-500.0,0.00019178,18]
[420207347,1775778642893,-500.0,0.00019178,18]
[420207348,1775778642912,-500.0,0.00019178,18]
[420207349,1775778642938,-1774.11,0.00019178,18]
[420207350,1775778642948,-568.26,0.00019178,18]
[420207351,1775778642966,-425.20897496,0.00019178,18]
[420207352,1775778642978,-604.09,0.00019178,18]
[420207353,1775778642987,-500.0,0.00019178,18]
[420207354,1775778642999,-1545.71,0.00019178,18]
[420207355,1775778643018,-1044.02,0.00019178,18]
[420207356,1775778643030,-530.59160913,0.00019178,18]
[420207357,1775778643043,-500.0,0.00019178,18]
[420207358,1775778643071,-882.61,0.00019178,18]
[420207359,1775778643081,-500.0,0.00019178,18]
[420207360,1775778643120,-5592.3,0.00019178,18]
[420207362,1775778643132,-971.92,0.00019178,18]
[420207364,1775778643167,-2277.09,0.00019178,18]
[420207367,1775778643177,-500.0,0.00019178,18]
[420207369,1775778643214,-500.0,0.00019178,18]
[420207371,1775778643247,-500.0,0.00019178,18]
[420207373,1775778643277,-1632.47,0.00019178,18]
[420207376,1775778643301,-803.17,0.00019178,18]
[420207378,1775778643311,-569.15975143,0.00019178,18]
[420207379,1775778643329,-542.61,0.00019178,18]
[420207381,1775778643366,-500.0,0.00019178,18]
[420207383,1775778643376,-500.0,0.00019178,18]
[420207384,1775778643406,-679.65,0.00019178,18]
[420207386,1775778643416,-500.0,0.00019178,18]
[420207388,1775778643431,-500.0,0.00019178,18]
[420207390,1775778643444,-1701.68,0.00019178,18]
[420207392,1775778643453,-2058.24,0.00019178,18]
[420207394,1775778643469,-500.0,0.00019178,18]
[420207396,1775778643479,-1980.14,0.00019178,18]
[420207398,1775778643488,-500.0,0.00019178,18]
[420207400,1775778643503,-623.92,0.00019178,18]
[420207402,1775778643512,-648.27,0.00019178,18]
[420207404,1775778643527,-500.0,0.00019178,18]
[420207406,1775778643537,-500.0,0.00019178,18]
[420207408,1775778643547,-1140.52,0.00019178,18]
[420207410,1775778643559,-500.0,0.00019178,2]
[420207412,1775778643570,-500.0,0.00019178,18]
[420207413,1775778643580,-1580.05,0.00019178,18]
[420207414,1775778643589,-500.0,0.00019178,18]
[420207415,1775778643598,-2301.87,0.00019178,18]
[420207417,1775778643609,-200.0,0.00019178,2]
[420207419,1775778643619,-500.0,0.00019178,18]
[420207421,1775778643628,-500.0,0.00019178,18]
[420207423,1775778643639,-781.67,0.00019178,18]
[420207424,1775778643650,-500.0,0.00019178,18]
[420207425,1775778643660,-500.0,0.00019178,18]
[420207426,1775778643671,-500.0,0.00019178,2]
[420207427,1775778643685,-1735.53,0.00019178,18]
[420207429,1775778643695,-638.85,0.00019178,18]
[420207431,1775778643719,-500.0,0.00019178,18]
[420207433,1775778643740,-500.0,0.00019178,18]
[420207435,1775778643758,-1846.85,0.00019178,18]
[420207438,1775778643783,-568.72,0.00019178,18]
[420207439,1775778643793,-1521.96,0.00019178,18]
[420207442,1775778643810,-500.0,0.00019178,18]
[420207443,1775778643831,-500.0,0.00019178,18]
[420207446,1775778643842,-500.0,0.00019178,18]
[420207448,1775778643862,-985.38,0.00019178,18]
[420207450,1775778643875,-500.0,0.00019178,18]
[420207452,1775778643895,-500.0,0.00019178,18]
[420207454,1775778643907,-500.0,0.00019178,18]
[420207456,1775778643918,-500.0,0.00019178,18]
[420207458,1775778643935,-1018.0,0.00019216,5]
[420207460,1775778643966,-168.0,0.00019239,2]
[420207462,1775778643977,-168.0,0.00019288,2]
[420207464,1775778644004,-168.0,0.00019373,2]
[420207465,1775778644030,-168.0,0.00019378,2]
[420207468,1775778644044,-2880.0277,0.00019452,18]
[420207472,1775778644054,-2880.0277,0.00019452,18]
[420207475,1775778644098,-919.61,0.00019452,18]
[420207477,1775778644110,-500.0,0.00019452,18]
[420207479,1775778644140,-500.0,0.00019452,18]
[420207481,1775778644168,-500.0,0.00019452,18]
[420207483,1775778644202,-1017.65,0.00019452,18]
[420207485,1775778644242,-500.0,0.00019452,18]
[420207487,1775778644266,-500.0,0.00019452,18]
[420207488,1775778644286,-630.17,0.00019452,18]
[420207491,1775778644320,-500.0,0.00019452,18]
[420207493,1775778644334,-500.0,0.00019452,18]
[420207495,1775778644381,-500.0,0.00019452,18]
[420207497,1775778644391,-500.0,0.00019452,18]
[420207499,1775778644407,-500.0,0.00019452,18]
[420207501,1775778644417,-563.46,0.00019452,18]
[420207503,1775778644429,-500.0,0.00019452,18]
[420207505,1775778644440,-1197.49,0.00019452,18]
[420207507,1775778644453,-500.0,0.00019452,18]
[420207509,1775778644468,-500.0,0.00019452,18]
[420207511,1775778644479,-500.0,0.00019452,18]
[420207513,1775778644497,-500.0,0.00019452,18]
[420207515,1775778644508,-500.0,0.00019452,18]
[420207518,1775778644518,-500.0,0.00019452,18]
[420207520,1775778644537,-500.0,0.00019452,18]
[420207522,1775778644548,-500.0,0.00019452,18]
[420207524,1775778644558,-500.0,0.00019452,18]
[420207526,1775778644569,-546.21,0.00019452,18]
[420207528,1775778644594,-500.0,0.00019452,18]
[420207530,1775778644606,-500.0,0.00019452,18]
[420207532,1775778644622,-500.0,0.00019452,18]
[420207534,1775778644634,-500.0,0.00019452,18]
[420207536,1775778644651,-500.0,0.00019452,18]
[420207538,1775778644672,-552.72,0.00019452,18]
[420207540,1775778644694,-500.0,0.00019452,18]
[420207542,1775778644730,-500.0,0.00019452,18]
[420207544,1775778644753,-500.0,0.00019452,18]
[420207546,1775778644786,-500.0,0.00019452,18]
[420207547,1775778644819,-500.0,0.00019452,18]
[420207550,1775778644832,-500.0,0.00019452,18]
[420207552,1775778644871,-500.0,0.00019452,18]
[420207554,1775778644882,-500.0,0.00019452,18]
[420207556,1775778644892,-500.0,0.00019452,18]
[420207558,1775778644902,-500.0,0.00019452,18]
[420207560,1775778644918,-519.29340652,0.00019452,18]
[420207562,1775778644928,-500.0,0.00019452,18]
[420207564,1775778644937,-500.0,0.00019452,18]
[420207566,1775778644947,-1679.61,0.00019452,18]
[420207568,1775778644962,-500.0,0.00019452,18]
[420207570,1775778644972,-500.0,0.00019452,18]
[420207572,1775778644982,-500.0,0.00019452,18]
[420207574,1775778644997,-524.1,0.00019452,18]
[420207576,1775778645007,-500.0,0.00019452,18]
[420207577,1775778645023,-500.0,0.00019452,18]
[420207578,1775778645150,-500.0,0.00019452,18]
[420207579,1775778645189,-500.0,0.00019452,18]
[420207580,1775778645199,-500.0,0.00019452,18]
[420207581,1775778645209,-500.99,0.00019452,18]
[420207582,1775778645221,-500.0,0.00019452,18]
[420207583,1775778645233,-500.0,0.00019452,18]
[420207584,1775778645244,-500.0,0.00019452,18]
[420207585,1775778645255,-565.22,0.00019452,18]
[420207586,1775778645281,-1241.91,0.00019452,18]
[420207587,1775778645300,-1168.6,0.00019452,18]
[420207588,1775778645315,-2662.65,0.00019452,18]
[420207589,1775778645343,-500.0,0.00019452,18]
[420207590,1775778645353,-566.51,0.00019452,18]
[420207591,1775778645373,-1012.1,0.00019452,18]
[420207593,1775778645398,-600.87,0.00019452,18]
[420207594,1775778645408,-2278.12,0.00019452,18]
[420207597,1775778645423,-714.99,0.00019452,18]
[420207599,1775778645468,-500.0,0.00019452,18]
[420207601,1775778645479,-435.31701311,0.00019452,18]
[420207603,1775778645494,-544.34,0.00019452,18]
[420207605,1775778645512,-500.0,0.00019452,18]
[420207607,1775778645522,-500.0,0.00019452,18]
[420207609,1775778645534,-1071.76,0.00019452,18]
[420207611,1775778645555,-500.0,0.00019452,18]
[420207613,1775778645565,-519.97,0.00019452,18]
[420207615,1775778645575,-500.0,0.00019452,18]
[420207617,1775778645603,-500.0,0.00019452,18]
[420207619,1775778645613,-500.0,0.00019452,18]
[420207621,1775778645627,-500.0,0.00019452,18]
[420207623,1775778645638,-500.0,0.00019452,18]
[420207625,1775778645649,-500.0,0.00019452,18]
[420207627,1775778645670,-647.93,0.00019452,18]
[420207629,1775778645680,-500.0,0.00019452,18]
[420207631,1775778645690,-500.0,0.00019452,18]
[420207633,1775778645705,-618.71,0.00019452,18]
[420207635,1775778645720,-368.1975341,0.00019452,18]
[420207637,1775778645731,-500.0,0.00019452,18]
[420207639,1775778645743,-500.0,0.00019452,18]
[420207641,1775778645760,-500.0,0.00019452,18]
[420207643,1775778645771,-500.0,0.00019452,18]
[420207646,1775778645805,-638.62,0.00019452,18]
[420207647,1775778645897,-500.0,0.00019452,18]
[420207650,1775778645969,-500.0,0.00019452,18]
[420207652,1775778646085,-657.79,0.00019452,18]
[420207655,1775778646111,-511.23,0.00019452,18]
[420207658,1775778646123,-500.0,0.00019452,18]
[420207660,1775778646133,-632.73303078,0.00019452,18]
[420207662,1775778646158,-500.0,0.00019452,18]
[420207664,1775778646169,-1675.59,0.00019452,18]
[420207666,1775778646180,-1251.81,0.00019452,18]
[420207668,1775778646206,-500.0,0.00019452,18]
[420207671,1775778646217,-500.0,0.00019452,18]
[420207673,1775778646232,-500.0,0.00019452,18]
[420207675,1775778646242,-500.0,0.00019452,18]
[420207677,1775778646252,-500.0,0.00019452,18]
[420207679,1775778646263,-2119.86,0.00019452,18]
[420207681,1775778646283,-1207.58,0.00019452,18]
[420207683,1775778646299,-500.0,0.00019452,18]
[420207685,1775778646310,-500.0,0.00019452,18]
[420207688,1775778646323,-500.0,0.00019452,18]
[420207690,1775778646333,-590.59,0.00019452,18]
[420207692,1775778646344,-500.0,0.00019452,18]
[420207694,1775778646354,-2058.36,0.00019452,18]
[420207696,1775778646365,-2073.23,0.00019452,18]
[420207698,1775778646374,-500.0,0.00019452,18]
[420207700,1775778646387,-619.1579519,0.00019452,18]
[420207702,1775778646397,-1899.17,0.00019452,18]
[420207704,1775778646409,-500.0,0.00019452,18]
[420207706,1775778646427,-224.6490607,0.00019452,18]
[420207708,1775778646436,-500.0,0.00019452,18]
[420207710,1775778646446,-500.0,0.00019452,18]
[420207712,1775778646460,-500.0,0.00019452,18]
[420207714,1775778646474,-500.0,0.00019452,18]
[420207716,1775778646499,-500.0,0.00019452,18]
[420207718,1775778646510,-1774.11,0.00019452,18]
[420207720,1775778646528,-568.26,0.00019452,18]
[420207722,1775778646538,-604.09,0.00019452,18]
[420207724,1775778646561,-500.0,0.00019452,18]
[420207727,1775778646572,-1545.71,0.00019452,18]
[420207729,1775778646583,-1044.02,0.00019452,18]
[420207731,1775778646595,-500.0,0.00019452,18]
[420207733,1775778646606,-882.61,0.00019452,18]
[420207735,1775778646616,-498.9506907,0.00019452,18]
[420207737,1775778646629,-5592.3,0.00019452,18]
[420207739,1775778646649,-971.92,0.00019452,18]
[420207741,1775778646661,-2277.09,0.00019452,18]
[420207743,1775778646688,-500.0,0.00019452,18]
[420207745,1775778646698,-500.0,0.00019452,18]
[420207747,1775778646728,-500.0,0.00019452,18]
[420207749,1775778646742,-1632.47,0.00019452,18]
[420207751,1775778646768,-803.17,0.00019452,18]
[420207753,1775778646778,-542.61,0.00019452,18]
[420207755,1775778646788,-500.0,0.00019452,18]
[420207757,1775778646804,-500.0,0.00019452,18]
[420207759,1775778646814,-679.65,0.00019452,18]
[420207761,1775778646826,-500.0,0.00019452,18]
[420207763,1775778646838,-500.0,0.00019452,18]
[420207765,1775778646848,-1701.68,0.00019452,18]
[420207767,1775778646861,-2058.24,0.00019452,18]
[420207769,1775778646871,-500.0,0.00019452,18]
[420207771,1775778646883,-1980.14,0.00019452,18]
[420207773,1775778646896,-424.65828628,0.00019452,18]
[420207775,1775778646905,-623.92,0.00019452,18]
[420207777,1775778646924,-648.27,0.00019452,18]
[420207779,1775778646935,-500.0,0.00019452,18]
[420207781,1775778646948,-500.0,0.00019452,18]
[420207783,1775778646961,-1140.52,0.00019452,18]
[420207784,1775778646971,-500.0,0.00019452,2]
[420207785,1775778646986,-500.0,0.00019452,18]
[420207786,1775778647000,-1580.05,0.00019452,18]
[420207787,1775778647016,-500.0,0.00019452,18]
[420207788,1775778647026,-2301.87,0.00019452,18]
[420207789,1775778647037,-500.0,0.00019452,18]
[420207790,1775778647056,-500.0,0.00019452,18]
[420207791,1775778647066,-781.67,0.00019452,18]
[420207792,1775778647079,-500.0,0.00019452,18]
[420207793,1775778647090,-500.0,0.00019452,2]
[420207794,1775778647100,-1735.53,0.00019452,18]
[420207795,1775778647112,-638.85,0.00019452,18]
[420207796,1775778647122,-500.0,0.00019452,18]
[420207797,1775778647134,-1846.85,0.00019452,18]
[420207798,1775778647148,-568.72,0.00019452,18]
[420207799,1775778647160,-1521.96,0.00019452,18]
[420207800,1775778647181,-220.63727615,0.00019452,18]
[420207801,1775778647191,-500.0,0.00019452,18]
[420207802,1775778647221,-500.0,0.00019452,18]
[420207803,1775778647231,-985.38,0.00019452,18]
[420207804,1775778647251,-500.0,0.00019452,18]
[420207805,1775778647264,-500.0,0.00019452,18]
[420207806,1775778647276,-500.0,0.00019452,18]
[420207807,1775778647288,-500.0,0.00019452,18]
[420207808,1775778647310,-41801.32366947,0.000195,2]
[420207809,1775778647322,-789.0,0.000195,2]
[420207810,1775778647333,-2797.56556587,0.00019532,2]
[420207811,1775778647343,-4021.0,0.00019538,2]
[420207812,1775778647367,-738.0,0.00019538,2]
[420207813,1775778647378,-184.0,0.00019538,2]
[420207814,1775778647394,-441.0,0.00019538,2]
[420207815,1775778647408,-2206.0,0.00019538,2]
[420207816,1775778647438,-1407.0,0.00019538,2]
[420207817,1775778647454,-644.0,0.00019538,2]
[420207818,1775778647472,-168.0,0.00019563,2]
[420207819,1775778647490,-168.0,0.00019597,2]
[420207820,1775778647508,-363.0,0.00019632,2]
[420207821,1775778647524,-1152.4267,0.00019726,18]
[420207822,1775778647535,-1152.4267,0.00019726,18]
[420207823,1775778647561,-1727.601,0.00019726,18]
[420207824,1775778647592,-1727.601,0.00019726,18]
[420207825,1775778647604,-919.61,0.00019726,18]
[420207826,1775778647624,-500.0,0.00019726,18]
[420207827,1775778647633,-500.0,0.00019726,18]
[420207828,1775778647647,-500.0,0.00019726,18]
[420207829,1775778647661,-1017.65,0.00019726,18]
[420207830,1775778647692,-500.0,0.00019726,18]
[420207831,1775778647715,-500.0,0.00019726,18]
[420207832,1775778647733,-630.17,0.00019726,18]
[420207833,1775778647746,-500.0,0.00019726,18]
[420207834,1775778647782,-500.0,0.00019726,18]
[420207835,1775778647807,-500.0,0.00019726,18]